bitfinex/quotes_BTCUSD_20210402
["timestamp","ask_amount","ask_price","bid_price","bid_amount"]
[1617345043851,2.757435,59513.0,59512.0,0.00175035]
[1617345044250,2.757435,59513.0,59512.0,0.00741002]
[1617345044484,3.057435,59513.0,59512.0,0.00741002]
[1617345044684,2.757435,59513.0,59512.0,0.03741002]
[1617345044881,2.757435,59513.0,59512.0,0.00741002]
[1617345045081,3.057435,59513.0,59512.0,0.00741002]
[1617345045480,2.757435,59513.0,59512.0,0.00741002]
[1617345045687,2.917435,59513.0,59512.0,0.00741002]
[1617345045890,2.978445,59513.0,59512.0,0.00741002]
[1617345046082,3.228445,59513.0,59512.0,0.00741002]
[1617345046285,3.278445,59513.0,59512.0,0.00741002]
[1617345046483,3.27928515,59513.0,59512.0,0.00741002]
[1617345046885,0.387435,59512.0,59511.0,0.00022]
[1617345047111,0.88821698,59512.0,59511.0,0.00022]
[1617345047512,0.98322,59511.0,59509.0,4e-05]
[1617345047712,4.852435,59510.0,59509.0,4e-05]
[1617345047909,4.902435,59510.0,59509.0,4e-05]
[1617345048511,3.902435,59510.0,59509.0,4e-05]
[1617345048712,4.154778,59510.0,59509.0,4e-05]
[1617345050289,4.154778,59510.0,59509.0,3.789e-05]
[1617345050701,4.154778,59510.0,59508.0,0.00111784]
[1617345050702,3.01,59509.0,59508.0,0.00111784]
[1617345051094,3.397435,59509.0,59508.0,0.00111784]
[1617345051492,3.697435,59509.0,59508.0,0.00111784]
[1617345052691,3.697435,59509.0,59508.0,0.00860929]
[1617345052893,0.687435,59509.0,59508.0,0.00860929]
[1617345053494,2.347435,59509.0,59508.0,0.00860929]
[1617345053891,2.047435,59509.0,59508.0,0.00860929]
[1617345054491,2.897435,59509.0,59508.0,0.00860929]
[1617345054694,3.061435,59509.0,59508.0,0.00860929]
[1617345054898,3.361435,59509.0,59508.0,0.00860929]
[1617345055697,2.511435,59509.0,59508.0,0.0131514]
[1617345055898,2.347435,59509.0,59508.0,0.0131514]
[1617345056296,0.687435,59509.0,59508.0,0.0431514]
[1617345056496,1.527435,59509.0,59508.0,0.0431514]
[1617345056702,0.387435,59509.0,59508.0,0.0431514]
[1617345057709,0.387435,59509.0,59508.0,0.04468285]
[1617345058324,0.387435,59509.0,59508.0,0.38613285]
[1617345058524,0.252343,59510.0,59508.0,0.53613285]
[1617345058717,0.252343,59510.0,59509.0,3.432235]
[1617345059117,0.252343,59510.0,59509.0,3.71697]
[1617345059314,0.252343,59510.0,59509.0,4.41197]
[1617345060340,0.252343,59510.0,59509.0,1.40197]
[1617345060546,0.252343,59510.0,59509.0,0.70217]
[1617345062342,0.252343,59510.0,59509.0,0.23217]
[1617345062545,0.2531832,59510.0,59509.0,0.23217]
[1617345062773,0.2540234,59510.0,59509.0,0.23217]
[1617345063774,0.25699269,59510.0,59509.0,0.23217]
[1617345063970,0.64442769,59510.0,59509.0,0.23217]
[1617345064567,0.6414584,59510.0,59509.0,0.23217]
[1617345065023,0.6444277,59510.0,59509.0,0.23217]
[1617345065231,0.6444277,59510.0,59509.0,0.23370142]
[1617345065623,0.2569927,59510.0,59509.0,0.23217]
[1617345066036,0.27381912,59510.0,59509.0,0.23217]
[1617345066824,0.27381912,59510.0,59509.0,0.03]
[1617345067029,0.6414584,59510.0,59509.0,0.03]
[1617345067233,0.66125393,59510.0,59509.0,0.03]
[1617345067628,0.6414584,59510.0,59509.0,0.03]
[1617345068036,0.64442768,59510.0,59509.0,0.03]
[1617345069042,0.6414584,59510.0,59509.0,0.03]
[1617345073257,0.6414584,59510.0,59509.0,0.03153353]
[1617345073457,0.2540234,59510.0,59509.0,0.03]
[1617345073657,0.2540234,59510.0,59509.0,0.205]
[1617345077695,0.2540234,59510.0,59509.0,0.03]
[1617345078522,0.2540234,59510.0,59509.0,0.03834721]
[1617345079720,0.27156511,59510.0,59509.0,0.03834721]
[1617345080372,0.65900011,59510.0,59509.0,0.03834721]
[1617345085981,0.67880387,59510.0,59509.0,0.03834721]
[1617345087795,0.65900011,59510.0,59509.0,0.03834721]
[1617345088598,0.65900011,59510.0,59509.0,0.04140729]
[1617345088798,0.65900011,59510.0,59509.0,0.03834721]
[1617345089812,0.69408477,59510.0,59509.0,0.03834721]
[1617345090816,0.65900011,59510.0,59509.0,0.03834721]
[1617345091219,1.51900011,59510.0,59509.0,0.03834721]
[1617345091640,1.53878347,59510.0,59509.0,0.03834721]
[1617345092040,1.51900011,59510.0,59509.0,0.03834721]
[1617345092242,3.68878319,59510.0,59509.0,0.03834721]
[1617345092441,1.58878319,59510.0,59509.0,0.03834721]
[1617345092638,1.53878319,59510.0,59509.0,0.03834721]
[1617345092841,1.51900011,59510.0,59509.0,0.03834721]
[1617345093038,3.23900011,59510.0,59509.0,0.03834721]
[1617345093437,3.28900011,59510.0,59509.0,0.03834721]
[1617345093643,1.56900011,59510.0,59509.0,0.03834721]
[1617345093846,1.58878324,59510.0,59509.0,0.03834721]
[1617345094044,0.72878324,59510.0,59509.0,0.03834721]
[1617345094266,0.67878324,59510.0,59509.0,0.03834721]
[1617345094871,0.66196752,59510.0,59509.0,0.03834721]
[1617345095500,0.65900011,59510.0,59509.0,0.03834721]
[1617345096295,0.65900011,59510.0,59509.0,0.04308845]
[1617345096499,0.65900011,59510.0,59509.0,0.03834721]
[1617345097720,0.6414584,59510.0,59509.0,0.03834721]
[1617345098123,0.64343663,59510.0,59509.0,0.03834721]
[1617345099129,0.6414584,59510.0,59509.0,0.03834721]
[1617345099526,0.6414584,59510.0,59509.0,0.19334721]
[1617345101923,0.6414584,59510.0,59509.0,0.03834721]
[1617345102551,0.64343665,59510.0,59509.0,0.03834721]
[1617345102950,0.6414584,59510.0,59509.0,0.03834721]
[1617345103351,0.64343663,59510.0,59509.0,0.03834721]
[1617345103548,0.6414584,59510.0,59509.0,0.03834721]
[1617345103749,0.64343666,59510.0,59509.0,0.03834721]
[1617345105985,0.6414584,59510.0,59509.0,0.03834721]
[1617345106184,0.64343665,59510.0,59509.0,0.03834721]
[1617345106380,0.6414584,59510.0,59509.0,0.03834721]
[1617345107798,0.64343665,59510.0,59509.0,0.03834721]
[1617345108602,0.6414584,59510.0,59509.0,0.03834721]
[1617345108800,0.64343668,59510.0,59509.0,0.03834721]
[1617345109396,0.6414584,59510.0,59509.0,0.03834721]
[1617345109800,0.6444259,59510.0,59509.0,0.03834721]
[1617345110322,0.84559342,59510.0,59509.0,0.03834721]
[1617345110522,0.96294592,59510.0,59509.0,0.03834721]
[1617345111519,0.96294592,59510.0,59509.0,0.04308845]
[1617345111719,0.7617784,59510.0,59509.0,0.04308845]
[1617345111919,0.7617784,59510.0,59509.0,0.03834721]
[1617345111920,1.67294592,59510.0,59509.0,0.03834721]
[1617345112119,0.7617784,59510.0,59509.0,0.03834721]
[1617345112524,0.96294592,59510.0,59509.0,0.03834721]
[1617345112823,0.7617784,59510.0,59509.0,0.03834721]
[1617345113820,1.3717784,59510.0,59509.0,0.03834721]
[1617345114022,0.7617784,59510.0,59509.0,0.03834721]
[1617345115438,0.9217784,59510.0,59509.0,0.03834721]
[1617345115635,0.7617784,59510.0,59509.0,0.03834721]
[1617345115839,1.4717784,59510.0,59509.0,0.03834721]
[1617345116042,1.6807784,59510.0,59509.0,0.03834721]
[1617345116246,2.0534184,59510.0,59509.0,0.03834721]
[1617345116641,3.0366384,59510.0,59509.0,0.03834721]
[1617345116841,4.1534184,59510.0,59509.0,0.00834721]
[1617345117239,2.0534184,59510.0,59509.0,0.00834721]
[1617345117640,2.3534184,59510.0,59509.0,0.00834721]
[1617345118061,1.8944184,59510.0,59509.0,0.00834721]
[1617345118869,1.1844184,59510.0,59509.0,0.00834721]
[1617345119461,0.8117784,59510.0,59509.0,0.03834721]
[1617345119663,0.7617784,59510.0,59509.0,0.03834721]
[1617345119863,0.96294592,59510.0,59509.0,0.03834721]
[1617345120067,0.7617784,59510.0,59509.0,0.03834721]
[1617345120468,0.6414584,59510.0,59509.0,0.03834721]
[1617345121691,0.6414584,59510.0,59509.0,0.04308847]
[1617345122087,0.6414584,59510.0,59509.0,0.03834721]
[1617345122687,1.8214584,59510.0,59509.0,0.03834721]
[1617345123813,2.9214584,59510.0,59509.0,0.03834721]
[1617345124020,3.2214584,59510.0,59509.0,0.03834721]
[1617345125080,2.1214584,59510.0,59509.0,0.03834721]
[1617345125284,0.6414584,59510.0,59509.0,0.03834721]
[1617345125693,2.1714584,59510.0,59509.0,0.03834721]
[1617345126087,2.1714584,59510.0,59509.0,0.00834721]
[1617345126283,2.86607736,59510.0,59509.0,0.00834721]
[1617345127286,2.86607736,59510.0,59509.0,0.03834721]
[1617345127685,3.99607736,59510.0,59509.0,0.03834721]
[1617345128285,2.86607736,59510.0,59509.0,0.03834721]
[1617345128685,3.41607736,59510.0,59509.0,0.03834721]
[1617345128888,2.86607736,59510.0,59509.0,0.03834721]
[1617345129290,2.86607736,59510.0,59509.0,0.04308845]
[1617345129684,2.56607736,59510.0,59509.0,0.03834721]
[1617345130887,1.03607736,59510.0,59509.0,0.03834721]
[1617345131692,4.04607736,59510.0,59508.0,0.03565995]
[1617345131895,3.397435,59509.0,59508.0,0.03565995]
[1617345132094,3.44644196,59509.0,59508.0,0.03565995]
[1617345132292,3.48592485,59509.0,59508.0,0.03565995]
[1617345133494,3.44644196,59509.0,59508.0,0.03565995]
[1617345134513,3.48589096,59509.0,59508.0,0.03565995]
[1617345134911,3.44644196,59509.0,59508.0,0.03565995]
[1617345135512,3.44644196,59509.0,59508.0,0.00565995]
[1617345136742,3.44644196,59509.0,59508.0,0.03565995]
[1617345136940,3.44644196,59509.0,59508.0,0.00565995]
[1617345137143,3.44644196,59509.0,59508.0,0.01040127]
[1617345137349,3.78453566,59509.0,59508.0,0.01040127]
[1617345137547,0.387435,59508.0,59506.0,0.17862]
[1617345137751,0.387435,59505.0,59499.0,0.00064]
[1617345137951,0.541435,59505.0,59504.0,0.00244]
[1617345138145,0.59036647,59505.0,59504.0,0.00244]
[1617345138348,3.397435,59504.0,59503.0,0.005]
[1617345138546,3.697435,59504.0,59503.0,0.005]
[1617345138748,3.01,59503.0,59499.0,0.00064]
[1617345138970,3.50116752,59502.0,59501.0,0.00042]
[1617345139168,3.9376483,59502.0,59501.0,0.00042]
[1617345139565,3.9376483,59502.0,59500.0,0.339125]
[1617345139772,3.387435,59501.0,59500.0,0.306125]
[1617345139967,3.74106483,59501.0,59500.0,0.306125]
[1617345141243,3.74106483,59501.0,59500.0,0.32583171]
[1617345141637,3.99343483,59501.0,59500.0,0.32583171]
[1617345142233,3.99343483,59501.0,59500.0,0.29583171]
[1617345143234,3.99427515,59501.0,59500.0,0.29583171]
[1617345143435,3.99511547,59501.0,59500.0,0.29583171]
[1617345145041,3.99511547,59501.0,59500.0,0.30380537]
[1617345145235,4.34511547,59501.0,59500.0,0.30380537]
[1617345145835,4.34511547,59501.0,59500.0,0.30180537]
[1617345146039,4.31114686,59501.0,59500.0,0.30380537]
[1617345146439,4.47514686,59501.0,59500.0,0.30380537]
[1617345146637,4.31114686,59501.0,59500.0,0.30380537]
[1617345147436,4.01114686,59501.0,59500.0,0.30380537]
[1617345148041,3.99148564,59501.0,59500.0,0.30380537]
[1617345148242,3.99148564,59501.0,59500.0,0.13555837]
[1617345148443,3.99148564,59501.0,59495.0,0.03064]
[1617345148444,3.31,59500.0,59495.0,0.00611237]
[1617345148644,3.31,59500.0,59496.0,0.03]
[1617345148645,0.25237,59498.0,59496.0,0.03]
[1617345148844,3.387435,59497.0,59496.0,0.036]
[1617345149048,3.39038299,59497.0,59496.0,0.032]
[1617345149665,3.39038299,59497.0,59496.0,0.002]
[1617345149862,3.782835,59497.0,59496.0,0.002]
[1617345150663,3.782835,59497.0,59496.0,0.00949296]
[1617345150861,4.082835,59497.0,59496.0,0.00949296]
[1617345151664,4.10248777,59497.0,59496.0,0.00949296]
[1617345152287,4.34248777,59497.0,59496.0,0.00949296]
[1617345152484,4.416725,59497.0,59496.0,0.00949296]
[1617345153089,4.579725,59497.0,59496.0,0.00949296]
[1617345153289,4.629725,59497.0,59496.0,0.00949296]
[1617345154490,4.63056538,59497.0,59496.0,0.00949296]
[1617345154713,4.63140576,59497.0,59496.0,0.00949296]
[1617345156199,4.46840576,59497.0,59496.0,0.00949296]
[1617345157198,4.60288906,59497.0,59496.0,0.00949296]
[1617345157390,4.36288906,59497.0,59496.0,0.00949296]
[1617345157592,4.35994541,59497.0,59496.0,0.00949296]
[1617345157995,4.35444541,59497.0,59496.0,0.00949296]
[1617345158997,4.21899972,59497.0,59496.0,0.00949296]
[1617345160395,0.91899972,59497.0,59496.0,0.00949296]
[1617345160601,0.52359972,59497.0,59496.0,0.00949296]
[1617345160794,0.72338812,59497.0,59496.0,0.00949296]
[1617345161395,3.87002793,59497.0,59496.0,0.00949296]
[1617345161596,3.73159972,59497.0,59496.0,0.00949296]
[1617345161797,3.72865541,59497.0,59496.0,0.00949296]
[1617345161995,4.02865541,59497.0,59496.0,0.00949296]
[1617345162393,4.26865541,59497.0,59496.0,0.00949296]
[1617345162595,4.11065541,59497.0,59496.0,0.00949296]
[1617345162995,4.06360103,59497.0,59496.0,0.00949296]
[1617345163394,4.17759103,59497.0,59496.0,0.00949296]
[1617345163800,3.0,59496.0,59494.0,0.00084]
[1617345164000,4.09452117,59495.0,59494.0,0.00084]
[1617345164202,3.0,59494.0,59493.0,0.0004]
[1617345164396,4.97102919,59494.0,59493.0,0.0004]
[1617345164800,4.97102919,59494.0,59491.0,0.00084]
[1617345164998,3.1997884,59493.0,59491.0,0.00084]
[1617345165206,3.0,59492.0,59491.0,0.00084]
[1617345165411,3.687435,59492.0,59491.0,0.00084]
[1617345165606,3.70707518,59492.0,59491.0,0.00084]
[1617345165816,3.687435,59492.0,59491.0,0.00084]
[1617345166615,4.54929586,59492.0,59491.0,0.00084]
[1617345166817,4.54929586,59492.0,59486.0,0.00084]
[1617345166818,3.98322,59491.0,59486.0,0.00084]
[1617345167018,0.550435,59489.0,59486.0,0.00084]
[1617345167213,3.387435,59487.0,59486.0,0.00084]
[1617345167407,3.74141198,59487.0,59486.0,0.00084]
[1617345167849,3.387435,59486.0,59484.0,0.0002]
[1617345168050,3.387435,59484.0,59483.0,0.00062]
[1617345168248,3.687435,59484.0,59483.0,0.00062]
[1617345169648,3.853435,59484.0,59483.0,0.00062]
[1617345170330,3.87097827,59484.0,59483.0,0.00062]
[1617345170776,3.57097827,59484.0,59483.0,0.00062]
[1617345170981,3.40497827,59484.0,59483.0,0.00062]
[1617345171174,3.387435,59484.0,59483.0,0.00062]
[1617345171778,3.387435,59484.0,59483.0,0.00536331]
[1617345171779,3.687435,59484.0,59483.0,0.00536331]
[1617345172177,3.850435,59484.0,59483.0,0.00536331]
[1617345172579,3.687435,59484.0,59483.0,0.00536331]
[1617345172778,3.97897465,59484.0,59483.0,0.00536331]
[1617345173216,3.0,59483.0,59476.0,0.01205984]
[1617345173413,0.387435,59478.0,59476.0,0.032]
[1617345173615,0.696575,59478.0,59477.0,0.002]
[1617345173810,0.796575,59478.0,59477.0,0.002]
[1617345174212,3.796575,59478.0,59477.0,0.002]
[1617345175014,0.796575,59478.0,59477.0,0.032]
[1617345175214,2.096575,59478.0,59477.0,0.032]
[1617345175613,0.796575,59478.0,59477.0,0.032]
[1617345176223,2.256575,59478.0,59477.0,0.032]
[1617345176818,2.25741565,59478.0,59477.0,0.032]
[1617345178222,3.01741565,59478.0,59477.0,0.032]
[1617345178839,2.15741565,59478.0,59477.0,0.032]
[1617345179442,2.15741565,59478.0,59477.0,0.002]
[1617345180240,3.90841565,59478.0,59477.0,0.002]
[1617345180637,3.69741565,59478.0,59477.0,0.002]
[1617345180842,2.15741565,59478.0,59477.0,0.002]
[1617345181069,2.90741565,59478.0,59477.0,0.002]
[1617345181264,2.90741565,59478.0,59477.0,0.032]
[1617345181469,2.15741565,59478.0,59477.0,0.032]
[1617345182065,2.87741565,59478.0,59477.0,0.032]
[1617345182665,3.03741565,59478.0,59477.0,0.032]
[1617345182866,3.08741565,59478.0,59477.0,0.032]
[1617345183068,3.69741565,59478.0,59477.0,0.032]
[1617345183264,2.87741565,59478.0,59477.0,0.032]
[1617345184291,0.69741565,59478.0,59477.0,0.032]
[1617345185090,2.10741565,59478.0,59477.0,0.032]
[1617345186964,0.69741565,59478.0,59477.0,0.032]
[1617345187169,0.38827565,59478.0,59477.0,0.03674379]
[1617345187371,0.38827565,59478.0,59477.0,0.002]
[1617345188566,0.38827565,59478.0,59477.0,0.032]
[1617345190969,1.01827565,59478.0,59477.0,0.032]
[1617345191169,0.38827565,59478.0,59477.0,0.002]
[1617345192373,0.38827565,59478.0,59477.0,0.032]
[1617345193978,1.33827565,59478.0,59477.0,0.032]
[1617345194189,0.38827565,59478.0,59477.0,0.032]
[1617345194992,0.38827565,59478.0,59477.0,0.03674379]
[1617345195195,0.38827565,59478.0,59477.0,0.032]
[1617345196596,0.38827565,59478.0,59477.0,0.03949535]
[1617345197020,1.32827565,59478.0,59477.0,0.03949535]
[1617345197817,0.38827565,59478.0,59477.0,0.03949535]
[1617345202312,0.38827565,59478.0,59477.0,0.00949535]
[1617345203514,0.38827565,59478.0,59477.0,0.03949535]
[1617345205918,1.61827565,59478.0,59477.0,0.03949535]
[1617345206319,0.38827565,59478.0,59477.0,0.03949535]
[1617345206920,0.93827565,59478.0,59477.0,0.03949535]
[1617345208125,0.38827565,59478.0,59477.0,0.03949535]
[1617345212251,2.85,59477.0,59471.0,0.12649535]
[1617345212480,0.014521,59473.0,59472.0,0.004]
[1617345212682,0.882428,59473.0,59471.0,0.00062]
[1617345212880,1.2101,59473.0,59472.0,0.03]
[1617345213082,1.2566839,59473.0,59472.0,0.032]
[1617345213679,2.4866839,59473.0,59472.0,0.032]
[1617345215108,0.6566839,59473.0,59472.0,0.032]
[1617345216546,0.8489381,59473.0,59472.0,0.032]
[1617345216748,2.7089381,59473.0,59472.0,0.002]
[1617345217752,2.4701,59473.0,59472.0,0.002]
[1617345217954,2.47302852,59473.0,59472.0,0.032]
[1617345218152,0.6101,59473.0,59472.0,0.032]
[1617345218352,0.61302937,59473.0,59472.0,0.032]
[1617345218552,0.6101,59473.0,59472.0,0.032]
[1617345218751,1.1701,59473.0,59472.0,0.032]
[1617345219155,1.17302926,59473.0,59472.0,0.032]
[1617345219357,1.1701,59473.0,59472.0,0.032]
[1617345219554,1.17094073,59473.0,59472.0,0.032]
[1617345219751,2.83094073,59473.0,59472.0,0.032]
[1617345220155,0.61094073,59473.0,59472.0,0.032]
[1617345222756,1.36094073,59473.0,59472.0,0.032]
[1617345222976,0.61094073,59473.0,59472.0,0.032]
[1617345223579,1.24094073,59473.0,59472.0,0.072]
[1617345224778,0.61094073,59473.0,59472.0,0.072]
[1617345226602,2.04319493,59473.0,59472.0,0.072]
[1617345226800,1.85094073,59473.0,59472.0,0.072]
[1617345227002,1.85386816,59473.0,59472.0,0.072]
[1617345227601,2.45386816,59473.0,59472.0,0.072]
[1617345228004,1.85094073,59473.0,59472.0,0.072]
[1617345228630,1.85386841,59473.0,59472.0,0.072]
[1617345229630,2.74386841,59473.0,59472.0,0.072]
[1617345230031,0.61386841,59473.0,59472.0,0.072]
[1617345230232,0.61386841,59473.0,59472.0,0.042]
[1617345230891,0.61094073,59473.0,59472.0,0.042]
[1617345231292,0.61386856,59473.0,59472.0,0.042]
[1617345231491,1.73094073,59473.0,59472.0,0.072]
[1617345232090,0.61094073,59473.0,59472.0,0.072]
[1617345235795,0.61289224,59473.0,59472.0,0.072]
[1617345236805,0.61094073,59473.0,59472.0,0.072]
[1617345239028,0.61094073,59473.0,59461.0,0.0202]
[1617345239332,0.61094073,59473.0,59455.0,0.06731873]
[1617345239333,0.252444,59464.0,59455.0,0.06731873]
[1617345239530,1.54319296,59468.0,59467.0,0.002]
[1617345239729,1.498222,59468.0,59462.0,0.03]
[1617345239930,0.00293084,59464.0,59463.0,0.002]
[1617345240123,0.00293084,59464.0,59462.0,0.036]
[1617345240727,0.222443,59463.0,59462.0,0.006]
[1617345240927,0.19328385,59463.0,59462.0,0.032]
[1617345241129,0.1941247,59463.0,59462.0,0.032]
[1617345242756,0.1941247,59463.0,59462.0,0.20373947]
[1617345242970,0.00293084,59465.0,59462.0,0.26919026]
[1617345243174,0.4821734,59480.0,59465.0,3.49994374]
[1617345243175,0.0390869,59474.0,59465.0,3.49994374]
[1617345243374,0.07799175,59480.0,59469.0,0.81760374]
[1617345243375,8.33e-06,59470.0,59469.0,0.81760374]
[1617345243572,0.0193614,59480.0,59469.0,0.92013868]
[1617345243775,0.03917894,59489.0,59479.0,0.18462339]
[1617345243997,0.03917894,59489.0,59488.0,3.58446941]
[1617345244199,0.15678457,59509.0,59494.0,0.03]
[1617345244200,0.05879422,59497.0,59494.0,0.03]
[1617345244393,0.26766,59496.0,59495.0,3.44561741]
[1617345244589,0.05883508,59503.0,59496.0,0.5611421]
[1617345244786,0.02883508,59503.0,59502.0,3.03]
[1617345244987,0.126142,59515.0,59502.0,3.42807687]
[1617345245194,0.336377,59510.0,59508.0,0.03]
[1617345245449,0.15695627,59517.0,59508.0,0.40704]
[1617345245654,0.31701393,59519.0,59508.0,0.40704]
[1617345245850,0.31701393,59519.0,59516.0,0.13395031]
[1617345245851,0.237259,59518.0,59516.0,0.13395031]
[1617345246638,0.252205,59524.0,59516.0,0.13395031]
[1617345247441,0.252205,59524.0,59512.0,0.06725463]
[1617345247442,0.387587,59523.0,59512.0,0.06725463]
[1617345247642,0.01934635,59526.0,59508.0,0.37704]
[1617345247643,0.237259,59521.0,59508.0,0.37704]
[1617345247840,0.98322,59522.0,59508.0,0.37704]
[1617345248039,0.98322,59522.0,59508.0,0.77511687]
[1617345248242,0.98322,59522.0,59509.0,0.15448816]
[1617345248436,0.98322,59522.0,59509.0,0.15308082]
[1617345248840,0.98322,59522.0,59507.0,0.08626]
[1617345249039,0.95142,59522.0,59505.0,0.03]
[1617345249253,0.25224,59515.0,59505.0,0.03]
[1617345249453,1.339007,59514.0,59502.0,0.00473872]
[1617345249648,0.00303724,59510.0,59502.0,0.00473872]
[1617345249846,1.288679,59509.0,59502.0,0.00473872]
[1617345250045,0.95342,59508.0,59502.0,0.00473872]
[1617345250246,0.487587,59507.0,59502.0,0.00473872]
[1617345250645,0.823995,59507.0,59502.0,0.00473872]
[1617345250844,0.82703224,59507.0,59502.0,0.00473872]
[1617345251041,0.823995,59507.0,59502.0,0.00473872]
[1617345251244,0.237259,59503.0,59500.0,0.03]
[1617345251450,0.237259,59502.0,59500.0,0.03]
[1617345252056,0.237259,59502.0,59497.0,0.03]
[1617345252258,0.489576,59502.0,59497.0,0.03]
[1617345253258,0.489576,59502.0,59501.0,0.0047388]
[1617345257920,1.77961412,59502.0,59501.0,0.0047388]
[1617345258123,1.596996,59502.0,59501.0,0.0047388]
[1617345258914,1.596996,59502.0,59488.0,0.03]
[1617345259116,0.00303724,59500.0,59486.0,0.03]
[1617345259322,1.18403812,59501.0,59486.0,0.0026]
[1617345259323,0.174361,59497.0,59486.0,0.0026]
[1617345259518,0.002,59494.0,59486.0,0.0026]
[1617345259743,0.387587,59492.0,59482.0,0.03]
[1617345259951,0.237259,59483.0,59478.0,0.0052]
[1617345260149,0.547349,59483.0,59477.0,0.03]
[1617345260340,0.1,59482.0,59477.0,0.03]
[1617345260633,0.237259,59478.0,59475.0,0.178]
[1617345260832,0.252439,59477.0,59475.0,0.178]
[1617345261036,0.387587,59476.0,59475.0,0.178]
[1617345261827,0.387587,59476.0,59475.0,0.208]
[1617345262484,0.38842767,59476.0,59475.0,0.208]
[1617345262882,0.38842767,59476.0,59475.0,0.207]
[1617345263683,0.38842767,59476.0,59475.0,0.03]
[1617345267090,3.07842767,59476.0,59474.0,0.03]
[1617345267293,3.337259,59475.0,59474.0,0.03]
[1617345267490,3.337259,59475.0,59473.0,0.03]
[1617345267716,3.57020512,59474.0,59473.0,0.03]
[1617345267910,3.387587,59474.0,59473.0,0.03]
[1617345268110,1.027587,59474.0,59473.0,0.03]
[1617345268712,1.027587,59474.0,59473.0,0.03749586]
[1617345268713,1.380015,59474.0,59473.0,0.03749586]
[1617345268909,0.640015,59474.0,59473.0,0.03749586]
[1617345271531,0.634515,59474.0,59473.0,0.03749586]
[1617345272135,1.834515,59474.0,59473.0,0.00749586]
[1617345272986,0.634515,59474.0,59473.0,0.00749586]
[1617345273182,1.234515,59474.0,59473.0,0.00749586]
[1617345273381,0.634515,59474.0,59473.0,0.00749586]
[1617345273787,0.634515,59474.0,59473.0,0.03749586]
[1617345275184,0.634515,59474.0,59473.0,0.04223997]
[1617345275991,0.63535571,59474.0,59473.0,0.04223997]
[1617345276192,0.25326871,59474.0,59473.0,0.04223997]
[1617345276403,0.25326871,59474.0,59473.0,0.03249586]
[1617345276994,0.64094971,59474.0,59473.0,0.03249586]
[1617345277393,0.25326871,59474.0,59473.0,0.03249586]
[1617345277592,0.25326871,59474.0,59473.0,0.00249586]
[1617345278427,0.64094971,59474.0,59473.0,0.00249586]
[1617345280232,0.25326871,59474.0,59473.0,0.00249586]
[1617345281037,0.25326871,59474.0,59473.0,0.00449586]
[1617345281240,0.25326871,59474.0,59473.0,0.03449586]
[1617345282043,0.64094971,59474.0,59473.0,0.03249586]
[1617345283041,0.64094971,59474.0,59473.0,0.34723809]
[1617345283243,0.25326871,59474.0,59473.0,0.34723809]
[1617345284261,0.25326871,59474.0,59473.0,0.03723809]
[1617345286383,0.64094971,59474.0,59473.0,0.03723809]
[1617345288386,0.64094971,59474.0,59473.0,0.00723809]
[1617345289016,0.82356783,59474.0,59473.0,0.00249586]
[1617345289816,0.64094971,59474.0,59473.0,0.00249586]
[1617345290618,0.64094971,59474.0,59473.0,0.00723809]
[1617345290818,0.82356783,59474.0,59473.0,0.00723809]
[1617345291016,0.64094971,59474.0,59473.0,0.00723809]
[1617345291830,0.64094971,59474.0,59473.0,0.03723809]
[1617345292436,0.25326871,59474.0,59473.0,0.03723809]
[1617345292636,0.64094971,59474.0,59473.0,0.03723809]
[1617345293033,0.64094971,59474.0,59473.0,0.00723809]
[1617345294262,0.82356783,59474.0,59473.0,0.00723809]
[1617345294460,0.82356783,59474.0,59473.0,0.00474223]
[1617345294660,0.64094971,59474.0,59473.0,0.00474223]
[1617345295659,0.64094971,59474.0,59473.0,0.03474223]
[1617345296063,0.25326871,59474.0,59473.0,0.03474223]
[1617345296263,0.64094971,59474.0,59473.0,0.03474223]
[1617345296487,0.64094971,59474.0,59473.0,0.03]
[1617345298085,0.64094971,59474.0,59473.0,0.03474223]
[1617345298694,1.02356783,59474.0,59473.0,0.00474223]
[1617345299113,0.82356783,59474.0,59473.0,0.00474223]
[1617345299309,0.64094971,59474.0,59473.0,0.00474223]
[1617345299510,1.02356783,59474.0,59473.0,0.00474223]
[1617345299710,0.82356783,59474.0,59473.0,0.00474223]
[1617345299911,1.59912445,59474.0,59473.0,0.00474223]
[1617345300117,1.39912445,59474.0,59473.0,0.00474223]
[1617345300513,1.21650633,59474.0,59473.0,0.00474223]
[1617345301113,1.41650633,59474.0,59473.0,0.00474223]
[1617345301511,1.21650633,59474.0,59473.0,0.00474223]
[1617345303135,0.82882533,59474.0,59473.0,0.00474223]
[1617345303337,1.21650633,59474.0,59473.0,0.00474223]
[1617345303535,1.21650633,59474.0,59473.0,0.03474223]
[1617345303736,1.21630633,59474.0,59473.0,0.03]
[1617345304360,1.41630633,59474.0,59473.0,0.03]
[1617345304559,1.21630633,59474.0,59473.0,0.03]
[1617345304760,2.11630633,59474.0,59472.0,0.03]
[1617345304961,3.03165,59473.0,59472.0,0.03]
[1617345307092,0.23165,59473.0,59472.0,0.03]
[1617345307490,0.95483833,59474.0,59472.0,0.03]
[1617345307892,2.127681,59473.0,59472.0,0.03]
[1617345308088,2.499031,59473.0,59472.0,0.03]
[1617345308688,3.609031,59473.0,59472.0,0.03]
[1617345308891,2.499031,59473.0,59472.0,0.03]
[1617345309716,0.759031,59473.0,59472.0,0.03]
[1617345310112,0.759031,59473.0,59472.0,0.03749605]
[1617345310714,2.299031,59473.0,59472.0,0.03749605]
[1617345312547,3.159031,59473.0,59472.0,0.00749605]
[1617345312746,2.662031,59473.0,59472.0,0.00749605]
[1617345313960,3.653451,59473.0,59472.0,0.00749605]
[1617345314160,3.943451,59473.0,59472.0,0.00749605]
[1617345314358,0.00303724,59471.0,59455.0,0.00042]
[1617345314559,1.18307,59470.0,59455.0,0.00042]
[1617345314763,0.57565536,59471.0,59455.0,0.00242]
[1617345314764,0.387681,59467.0,59455.0,0.00242]
[1617345314970,0.33165,59461.0,59455.0,0.00242]
[1617345315169,0.74893,59461.0,59455.0,0.00242]
[1617345315760,0.387681,59459.0,59455.0,0.00242]
[1617345315961,0.1,59458.0,59455.0,0.00242]